bitfinex/quotes_SOLUSD_20250228
["timestamp","ask_amount","ask_price","bid_price","bid_amount"]
[1740744092143,0.063,133.93,133.92,24.35860903]
[1740744092732,0.063,133.93,133.92,31.82570903]
[1740744093136,0.0001,133.93,133.92,31.82570903]
[1740744093543,0.063,134.01,133.94,4.14216157]
[1740744093734,0.063,134.01,133.98,20.79181043]
[1740744093951,0.063,134.01,134.0,20.79181043]
[1740744094244,0.063,134.01,134.0,218.74555185]
[1740744095029,0.063,134.05,134.01,22.79181043]
[1740744095252,0.063,134.05,134.04,42.79181043]
[1740744095556,0.063,134.05,134.04,247.49111867]
[1740744095725,0.063,134.05,134.04,245.92555185]
[1740744096339,0.063,134.05,134.04,253.38595185]
[1740744096546,0.0001,134.05,134.04,253.38595185]
[1740744096748,0.063,134.09,134.08,24.14216157]
[1740744096941,0.063,134.09,134.08,240.31071432]
[1740744097134,0.063,134.09,134.08,238.74555185]
[1740744097329,0.063,134.09,134.08,236.74555185]
[1740744097748,0.063,134.09,134.08,234.74555185]
[1740744098451,0.063,134.09,134.08,242.20375185]
[1740744098755,0.063,134.09,134.08,554.20375185]
[1740744099052,0.063,134.09,134.08,558.20375185]
[1740744099462,0.0001,134.1,134.09,22.79181043]
[1740744099668,0.063,134.19,134.14,22.14216157]
[1740744099831,0.063,134.19,134.18,20.0]
[1740744100147,0.063,134.19,134.18,234.74545185]
[1740744102251,0.063,134.19,134.18,59.69149941]
[1740744102547,0.063,134.19,134.14,7.3]
[1740744104241,20.0,134.18,134.14,7.3]
[1740744104442,20.0,134.18,134.11,136.26214201]
[1740744105830,20.0,134.18,134.11,448.26214201]
[1740744106558,20.0,134.18,134.11,371.69149941]
[1740744106862,20.0,134.18,134.11,378.99149941]
[1740744107756,20.0,134.17,134.11,378.99149941]
[1740744107951,1.6216,134.15,134.11,59.69149941]
[1740744108669,1.6216,134.15,134.06,195.95364142]
[1740744108852,1.6216,134.15,134.07,7.3]
[1740744110938,1.6216,134.15,134.07,319.3]
[1740744112645,1.6216,134.15,134.07,326.7586]
[1740744112966,1.6216,134.15,134.08,20.35739967]
[1740744113149,1.6216,134.15,134.08,214.74545185]
[1740744114565,1.6216,134.15,134.08,195.95364142]
[1740744115561,1.6216,134.15,134.08,59.69149941]
[1740744115950,1.6216,134.15,134.08,371.69149941]
[1740744118566,20.0,134.13,134.08,371.69149941]
[1740744118864,18.79181043,134.14,134.08,59.69149941]
[1740744119061,20.0,134.13,134.08,59.69149941]
[1740744119260,1.6216,134.15,134.08,59.69149941]
[1740744121744,1.6216,134.15,134.08,371.69149941]
[1740744121971,18.79181043,134.14,134.08,59.69149941]
[1740744122769,1.6216,134.15,134.08,59.69149941]
[1740744123269,20.0,134.13,134.08,59.69149941]
[1740744123866,20.0,134.12,134.08,59.69149941]
[1740744124067,20.0,134.12,134.05,66.91149941]
[1740744124267,1.5066,134.08,134.05,59.69149941]
[1740744124569,1.5066,134.08,134.03,7.24]
[1740744124956,1.5066,134.08,134.03,319.24]
[1740744125262,1.5066,134.08,134.04,18.79181043]
[1740744125466,7.6952,134.14,134.04,18.79181043]
[1740744125771,7.6952,134.14,134.04,214.74545185]
[1740744126156,7.6952,134.14,134.04,222.20545185]
[1740744126647,18.79181043,134.13,134.04,195.95364142]
[1740744126853,82.8,134.12,134.04,59.69149941]
[1740744127259,82.8,134.12,134.04,67.15179941]
[1740744127455,82.8,134.12,134.05,18.79181043]
[1740744127973,7.6952,134.14,134.05,240.74132416]
[1740744128171,7.6952,134.14,134.08,0.14216157]
[1740744128371,1.632,134.14,134.1,0.14216157]
[1740744128556,1.632,134.14,134.12,312.0]
[1740744128758,1.632,134.14,134.12,371.69149941]
[1740744130857,6.3395,134.17,134.12,371.69149941]
[1740744132690,0.14216157,134.16,134.12,371.69149941]
[1740744132975,6.3395,134.17,134.12,59.69149941]
[1740744134080,0.063,134.15,134.12,59.69149941]
[1740744134793,0.063,134.15,134.12,67.14739941]
[1740744134977,0.063,134.15,134.12,203.40954142]
[1740744135984,0.063,134.15,134.14,312.0]
[1740744136175,0.063,134.15,134.14,319.26]
[1740744138579,0.063,134.15,134.14,378.95149941]
[1740744139282,0.063,134.15,134.12,143.71784201]
[1740744139283,0.063,134.15,134.12,59.69149941]
[1740744139594,1.5747,134.14,134.12,59.69149941]
[1740744139795,1.5747,134.14,134.11,7.24]
[1740744140362,1.5747,134.14,134.08,0.03]
[1740744140563,6.3071,134.13,134.08,0.03]
[1740744142264,6.3071,134.13,134.1,312.0]
[1740744142465,1.5747,134.14,134.1,371.69149941]
[1740744142664,1.5747,134.14,134.1,378.93149941]
[1740744142876,1.5747,134.14,134.1,66.93149941]
[1740744143396,1.5747,134.14,134.1,59.69149941]
[1740744143576,18.79181043,134.13,134.08,0.03]
[1740744143886,6.3378,134.12,134.08,0.03]
[1740744145579,20.79181043,134.11,134.03,7.24]
[1740744145782,27.7606,134.07,133.99,66.93149941]
[1740744146786,27.7606,134.07,134.04,312.0]
[1740744147363,101.59181043,134.06,134.04,312.0]
[1740744147701,101.59181043,134.06,133.99,59.69149941]
[1740744148572,101.59181043,134.06,134.02,312.0]
[1740744149693,101.59181043,134.06,133.99,59.69149941]
[1740744150982,103.59181043,134.06,133.97,59.69149941]
[1740744151300,20.0,133.97,133.94,0.03]
[1740744151691,90.9899,134.0,133.94,0.03]
[1740744152384,20.0,133.97,133.94,0.03]
[1740744152697,20.0,133.97,133.94,312.03]
[1740744153084,20.0,133.95,133.94,312.03]
[1740744153412,82.8,133.96,133.94,0.03]
[1740744154581,20.0,133.93,133.91,0.03]
[1740744156004,26.0727,133.93,133.91,0.03]
[1740744156301,27.6404,133.93,133.91,312.03]
[1740744157596,18.79181043,133.92,133.85,215.94558004]
[1740744157775,20.0,133.88,133.85,19.99193862]
[1740744158494,20.0,133.88,133.85,331.99193862]
[1740744159680,18.79181043,133.87,133.85,331.99193862]
[1740744159903,111.71941043,133.86,133.85,19.99193862]
[1740744160188,90.9276,133.86,133.85,19.99193862]
[1740744162897,111.71941043,133.86,133.85,16.28443862]
[1740744163099,113.71931043,133.86,133.85,16.28443862]
[1740744163306,111.71941043,133.86,133.85,16.28443862]
[1740744164303,109.71941043,133.86,133.85,16.28443862]
[1740744164897,26.91941043,133.86,133.85,16.28443862]
[1740744165215,30.91931043,133.86,133.85,16.28443862]
[1740744165394,28.91941043,133.86,133.85,16.28443862]
[1740744166682,26.91941043,133.86,133.85,16.28443862]
[1740744167085,8.1276,133.86,133.85,16.28443862]
[1740744167289,0.14216157,133.8,133.77,0.03]
[1740744167589,20.0,133.78,133.77,0.03]
[1740744168300,21.21066264,133.81,133.77,0.03]
[1740744168618,20.0,133.78,133.77,0.03]
[1740744168788,18.79181043,133.8,133.77,0.03]
[1740744168789,20.0,133.8,133.77,0.03]
[1740744169410,20.0,133.79,133.77,0.03]
[1740744171113,20.0,133.78,133.77,0.03]
[1740744171710,1.21066264,133.81,133.77,0.03]
[1740744171901,82.8,133.83,133.77,0.03]
[1740744172103,20.0,133.82,133.77,81.63]
[1740744172295,20.0,133.82,133.78,7.24]
[1740744172696,82.8,133.85,133.78,7.24]
[1740744172914,82.8,133.85,133.78,88.84]
[1740744174109,20.0,133.81,133.77,0.03]
[1740744174487,20.0,133.8,133.77,0.03]
[1740744174687,20.0,133.8,133.77,312.03]
[1740744175007,20.0,133.79,133.77,0.03]
[1740744177295,82.8,133.82,133.77,0.03]
[1740744178008,82.8,133.82,133.77,312.03]
[1740744178391,82.8,133.82,133.77,0.03]
[1740744178797,101.44964886,133.85,133.77,81.63]
[1740744179514,20.0,133.8,133.77,0.03]
[1740744179713,104.7999,133.8,133.77,0.03]
[1740744179919,101.59181043,133.79,133.77,0.03]
[1740744180242,103.59171043,133.79,133.77,0.03]
[1740744180404,22.79171043,133.78,133.77,0.03]
[1740744180718,30.01171043,133.78,133.77,0.03]
[1740744180900,37.57600499,133.78,133.77,0.03]
[1740744185501,33.57610499,133.78,133.77,0.03]
[1740744185705,26.21394342,133.78,133.77,0.03]
[1740744185931,7.56429456,133.78,133.77,0.03]
[1740744188621,20.0,133.79,133.77,0.03]
[1740744188801,125.92,133.82,133.77,0.03]
[1740744189004,9.2799,133.86,133.77,0.03]
[1740744189202,9.2799,133.86,133.77,81.63]
[1740744189203,20.0,133.82,133.77,81.63]
[1740744189724,82.8,133.85,133.77,81.63]
[1740744190255,26.07181043,133.86,133.78,312.0]
[1740744190256,7.28,133.86,133.78,312.0]
[1740744190527,20.0,133.84,133.78,312.0]
[1740744190734,0.063,133.87,133.79,24.91921043]
[1740744190914,0.063,133.87,133.8,7.3]
[1740744191115,20.0,133.86,133.8,88.9]
[1740744191806,0.063,133.87,133.8,88.9]
[1740744192211,0.063,133.87,133.81,1.5758]
[1740744192524,20.0,133.86,133.81,1.5758]
[1740744193323,0.063,133.87,133.81,1.5758]
[1740744193719,0.063,133.87,133.83,312.0]
[1740744193911,0.063,133.87,133.83,393.6]
[1740744194111,0.063,133.87,133.83,529.86214201]
[1740744194307,0.063,133.87,133.83,217.86214201]
[1740744194908,84.7999,133.97,133.86,0.14216157]
[1740744195113,82.8,133.96,133.88,1.6489]
[1740744195308,20.0,133.93,133.88,1.6489]
[1740744195522,20.0,133.93,133.88,83.2489]
[1740744195831,208.76,133.98,133.88,219.51104201]
[1740744196015,20.0,133.95,133.88,219.51104201]
[1740744197445,20.0,133.93,133.88,395.2489]
[1740744197745,21.9999,133.93,133.88,81.6]
[1740744197933,20.0,133.89,133.85,6.3427]
[1740744198132,20.0,133.88,133.85,6.3427]
[1740744199145,20.0,133.88,133.84,83.2464]
[1740744199843,20.0,133.87,133.84,1.6464]
[1740744200046,20.0,133.85,133.84,1.6464]
[1740744200449,20.0,133.85,133.81,87.7101]
[1740744200750,20.0,133.85,133.81,399.7101]
[1740744201551,20.0,133.84,133.8,1.5314]
[1740744201751,20.0,133.82,133.8,1.5314]
[1740744203837,82.8,133.89,133.8,83.1314]
[1740744204042,82.94216157,133.88,133.8,83.1314]
[1740744204344,20.0,133.85,133.84,0.03]
[1740744207331,20.14216157,133.85,133.84,0.03]
[1740744207530,102.94216157,133.85,133.84,0.03]
[1740744208149,102.8,133.85,133.84,0.03]
[1740744208647,20.0,133.85,133.84,0.03]
[1740744208845,7.56429456,133.89,133.84,0.03]
[1740744209227,20.0,133.86,133.84,0.03]
[1740744209644,7.56429456,133.89,133.84,0.03]
[1740744210036,20.0,133.86,133.84,0.03]
[1740744210752,20.0,133.87,133.84,0.03]
[1740744211127,20.0,133.88,133.84,0.03]
[1740744211530,90.36429456,133.92,133.85,6.5237]
[1740744211934,20.0,133.88,133.84,0.03]
[1740744212248,20.0,133.87,133.84,0.03]
[1740744213048,0.14216157,133.85,133.84,0.03]
[1740744213249,82.94216157,133.85,133.84,0.03]
[1740744214232,103.59171043,133.85,133.84,0.03]
[1740744215144,30.35600499,133.85,133.84,0.03]
[1740744216048,26.35610499,133.85,133.84,0.03]
[1740744216351,7.56429456,133.85,133.84,0.03]
[1740744217365,7.3,133.86,133.84,0.03]
[1740744218065,18.79181043,133.85,133.84,0.03]
[1740744218269,20.79171043,133.85,133.84,0.03]
[1740744219168,22.79171043,133.85,133.84,0.03]
[1740744219360,24.06645865,133.85,133.84,0.03]
[1740744219534,1.9999,133.8,133.77,0.03]
[1740744219858,22.79171043,133.79,133.77,0.03]
[1740744220051,30.35600499,133.79,133.77,0.03]
[1740744220275,28.35600499,133.79,133.77,0.03]
[1740744220637,26.35610499,133.79,133.77,0.03]
[1740744220836,26.21394342,133.79,133.77,0.03]
[1740744221165,7.3,133.81,133.77,0.03]
[1740744221339,20.0,133.78,133.77,0.03]
[1740744221540,38.64964886,133.78,133.77,0.03]
[1740744221975,38.79181043,133.78,133.77,0.03]
[1740744222347,38.64964886,133.78,133.77,0.03]
[1740744222576,20.0,133.78,133.77,0.03]
[1740744222940,38.64964886,133.78,133.77,0.03]
[1740744223136,7.3,133.81,133.77,0.03]
[1740744223440,18.64964886,133.8,133.77,0.03]
[1740744223642,82.8,133.82,133.77,6.3847]
[1740744223837,7.32,133.85,133.77,87.9847]
[1740744224067,82.8,133.86,133.78,8.8897]
[1740744224472,20.0,133.82,133.78,8.8897]
[1740744224769,18.64964886,133.85,133.78,90.4897]
[1740744224938,20.0,133.82,133.78,402.4897]
[1740744226609,18.64964886,133.81,133.78,90.4897]
[1740744226785,38.64964886,133.79,133.78,1.5697]
[1740744227110,38.64964886,133.79,133.77,0.03]
[1740744227309,18.64964886,133.78,133.77,0.03]
[1740744227499,38.79181043,133.78,133.77,0.03]
[1740744227699,40.79181043,133.78,133.77,0.03]
[1740744227912,48.82744736,133.78,133.77,0.03]
[1740744228208,46.82744736,133.78,133.77,0.03]
[1740744228514,48.82744736,133.78,133.77,0.03]
[1740744228699,44.82754736,133.78,133.77,0.03]
[1740744229392,48.82744736,133.78,133.77,0.03]
[1740744230111,24.14206157,133.74,133.71,0.03]
[1740744230344,2.14206157,133.72,133.71,0.03]
[1740744230612,20.79171043,133.72,133.71,0.03]
[1740744230804,18.79181043,133.72,133.71,0.03]
[1740744231484,22.79171043,133.72,133.71,0.03]
[1740744232102,30.35600499,133.72,133.71,0.03]
[1740744232313,22.79171043,133.71,133.7,0.03]
[1740744232489,30.35600499,133.71,133.7,0.03]
[1740744233914,28.35610499,133.71,133.7,0.03]
[1740744234417,30.35600499,133.71,133.7,0.03]
[1740744234723,28.35610499,133.71,133.7,0.03]
[1740744235093,30.35600499,133.71,133.7,0.03]
[1740744236128,28.35610499,133.71,133.7,0.03]
[1740744236798,30.35600499,133.71,133.7,0.03]
[1740744237225,40.79181043,133.69,133.68,0.03]
[1740744238412,38.79181043,133.69,133.68,0.03]
[1740744239408,42.79171043,133.69,133.68,0.03]
[1740744239611,50.35600499,133.69,133.68,0.03]
[1740744240603,46.35610499,133.69,133.68,0.03]
[1740744241521,26.35610499,133.69,133.68,0.03]
[1740744241703,18.64964886,133.69,133.68,0.03]
[1740744241903,126.02,133.71,133.69,1.5435]
[1740744244938,90.08,133.75,133.69,1.5435]
[1740744245237,82.8,133.78,133.69,531.40564201]
[1740744245737,82.8,133.78,133.7,0.14216157]
[1740744246035,82.8,133.78,133.71,1.5602]
[1740744246246,18.64964886,133.77,133.72,7.26]
[1740744246404,20.0,133.74,133.72,7.26]
[1740744247026,20.0,133.74,133.71,83.1602]
[1740744247232,18.64964886,133.73,133.71,1.5602]
[1740744249011,20.0,133.72,133.68,6.5514]
[1740744249207,20.0,133.72,133.68,88.1514]
[1740744249636,82.8,133.75,133.68,88.1514]
[1740744249837,7.56429456,133.77,133.69,7.28]
[1740744250021,126.06,133.79,133.71,1.589]
[1740744250225,126.06,133.79,133.71,83.189]
[1740744250736,20.0,133.76,133.71,83.189]
[1740744252341,38.64964886,133.73,133.71,1.589]
[1740744253029,82.94216157,133.77,133.71,1.589]
[1740744253208,82.8,133.76,133.71,1.589]
[1740744253404,20.0,133.72,133.68,6.5514]
[1740744253603,18.64964886,133.7,133.68,6.5514]
[1740744253826,38.64964886,133.7,133.68,6.5514]
[1740744254209,20.0,133.7,133.68,6.5514]
[1740744254410,0.063,133.72,133.68,6.5514]
[1740744255011,18.71264886,133.72,133.68,6.5514]
[1740744255419,20.0,133.69,133.68,6.5514]
[1740744255615,38.64964886,133.69,133.68,6.5514]
[1740744256826,20.0,133.69,133.68,6.5514]
[1740744257545,82.863,133.72,133.68,6.5514]
[1740744257719,20.063,133.72,133.68,6.5514]
[1740744258120,0.063,133.72,133.68,6.5514]
[1740744258836,20.0,133.71,133.68,318.5514]
[1740744259225,18.64964886,133.7,133.68,0.03]
[1740744260720,0.063,133.72,133.68,0.03]
[1740744262225,0.063,133.72,133.68,312.03]
[1740744263131,0.063,133.72,133.68,0.03]
[1740744263944,0.063,133.72,133.68,0.17216157]
[1740744264238,0.063,133.72,133.68,0.03]
[1740744264825,20.0,133.71,133.68,0.03]
[1740744265443,0.063,133.72,133.68,0.03]
[1740744266120,0.063,133.72,133.68,393.63]
[1740744266540,4.23392958,133.77,133.71,1.5323]
[1740744266748,3.33036498,133.78,133.71,83.1323]
[1740744266946,38.64964886,133.77,133.71,83.1323]
[1740744267250,18.64964886,133.77,133.71,83.1323]
[1740744267641,38.64964886,133.77,133.71,83.1323]
[1740744268947,18.64964886,133.79,133.72,7.3]
[1740744269649,18.64964886,133.79,133.73,312.0]
[1740744271445,20.0,133.79,133.73,530.1]
[1740744272042,126.04,133.82,133.76,6.1554]
[1740744272347,18.64964886,133.81,133.76,87.7554]
[1740744272544,0.063,133.84,133.77,0.14216157]
[1740744272736,0.063,133.84,133.79,0.14216157]
[1740744273057,0.063,133.84,133.81,0.14216157]
[1740744273361,0.063,133.84,133.81,7.44216157]
[1740744273931,0.063,133.84,133.81,7.3]
[1740744274237,18.71264886,133.84,133.8,89.427]
[1740744274743,38.64964886,133.81,133.8,1.6246]
[1740744275752,38.64964886,133.81,133.76,320.0946]
[1740744275955,38.64964886,133.81,133.76,401.6946]
[1740744276450,18.64964886,133.8,133.76,401.6946]
[1740744276746,38.64964886,133.77,133.76,1.5697]
[1740744276947,18.64964886,133.76,133.72,0.03]
[1740744282541,38.64964886,133.73,133.72,0.03]
[1740744283563,38.79181043,133.73,133.72,0.03]
[1740744284352,38.64964886,133.73,133.72,0.03]
[1740744286343,20.14216157,133.69,133.68,0.03]
[1740744287267,38.79181043,133.69,133.68,0.03]
[1740744289666,38.79181043,133.69,133.68,0.21988785]
[1740744291962,38.79181043,133.69,133.68,0.03]
[1740744292168,38.64964886,133.69,133.68,0.03]
[1740744294674,38.79181043,133.69,133.68,0.03]
[1740744296950,42.32026806,133.69,133.68,0.03]
[1740744297251,42.79171043,133.66,133.65,0.03]
[1740744297460,51.57851183,133.66,133.65,0.03]
[1740744297660,53.10706946,133.66,133.65,0.03]
[1740744297859,51.10716946,133.66,133.65,0.03]
[1740744298060,53.10706946,133.66,133.65,0.03]
[1740744298262,49.10716946,133.66,133.65,0.03]
[1740744299672,48.96500789,133.66,133.65,0.03]
[1740744299858,25.88964886,133.66,133.65,0.03]
[1740744300381,18.64964886,133.66,133.65,0.03]
[1740744300783,38.64964886,133.66,133.65,0.03]
[1740744300957,18.64964886,133.66,133.65,0.03]
[1740744302261,38.79181043,133.66,133.65,0.03]
[1740744303467,18.79181043,133.66,133.65,0.03]
[1740744304180,20.79181043,133.65,133.64,0.03]
[1740744304355,28.35610499,133.65,133.64,0.03]
[1740744305666,26.35610499,133.65,133.64,0.03]
[1740744306000,28.35610499,133.65,133.64,0.03]
[1740744306290,20.79181043,133.64,133.63,0.03]
[1740744306465,25.29898973,133.64,133.63,0.03]
[1740744306668,28.35610499,133.64,133.63,0.03]
[1740744307687,26.35610499,133.64,133.63,0.03]
[1740744308279,18.64964886,133.64,133.63,0.03]
[1740744308496,7.56429456,133.69,133.63,1.6196]
[1740744309065,20.0,133.66,133.63,1.6196]
[1740744309376,0.14216157,133.64,133.63,0.03]
[1740744309581,18.79181043,133.64,133.63,0.03]
[1740744309762,26.35610499,133.64,133.63,0.03]
[1740744309958,26.35610499,133.64,133.58,0.03]
[1740744310169,38.79181043,133.59,133.58,0.03]
[1740744310769,38.64964886,133.59,133.58,0.03]
[1740744311172,18.64964886,133.59,133.58,0.03]
[1740744312863,18.79181043,133.59,133.58,0.03]
[1740744313064,38.64964886,133.59,133.58,0.03]
[1740744314689,18.64964886,133.59,133.58,0.03]
[1740744316375,101.59181043,133.59,133.58,0.03]
[1740744316772,20.14216157,133.57,133.56,0.18988785]
[1740744317079,26.35610499,133.57,133.56,0.18988785]
[1740744319074,26.35610499,133.57,133.47,1.5687]
[1740744319274,18.64964886,133.52,133.47,313.5687]
[1740744319472,18.64964886,133.51,133.47,313.5687]
[1740744320291,18.64964886,133.51,133.47,1.5687]
[1740744321488,0.14216157,133.5,133.47,1.5687]
[1740744321774,18.64964886,133.49,133.44,1.6394]
[1740744321991,101.44964886,133.49,133.44,1.6394]
[1740744322290,18.64964886,133.47,133.44,1.6394]
[1740744323188,101.44964886,133.47,133.44,0.03]
[1740744324875,82.8,133.5,133.44,0.03]
[1740744325070,18.64964886,133.49,133.44,0.03]
[1740744325490,82.8,133.48,133.44,0.03]
[1740744325692,20.0,133.49,133.44,0.03]
[1740744325880,0.14216157,133.51,133.44,0.03]
[1740744326085,18.79181043,133.51,133.44,0.03]
[1740744326476,18.64964886,133.47,133.44,0.03]
[1740744327202,18.64964886,133.48,133.44,0.03]
[1740744327988,18.64964886,133.48,133.44,312.03]
[1740744328577,18.64964886,133.48,133.44,0.03]
[1740744329089,0.14216157,133.51,133.44,0.03]
[1740744329272,90.22,133.52,133.45,10.1196]
[1740744329273,82.8,133.52,133.45,10.1196]
[1740744329477,82.8,133.55,133.46,2.0]
[1740744329674,20.0,133.51,133.45,8.1196]
[1740744329879,82.8,133.53,133.45,8.1196]
[1740744330298,18.64964886,133.52,133.46,2.0]
[1740744331481,15.55592696,133.55,133.46,85.6]
[1740744331680,82.97399576,133.56,133.49,3.6588]
[1740744331681,0.17399576,133.56,133.49,3.6588]
[1740744331880,82.8,133.58,133.5,6.226]
[1740744332207,18.64964886,133.57,133.5,89.826]
[1740744332827,7.7691988,133.59,133.5,233.8163]
[1740744333115,0.063,133.59,133.53,3.5563]
[1740744333413,0.063,133.59,133.54,9.48]
[1740744333909,0.063,133.59,133.54,91.08]
[1740744334400,0.063,133.59,133.57,6.48]
[1740744335078,0.063,133.59,133.57,318.48]
[1740744339001,0.063,133.59,133.57,6.48]
[1740744340020,0.063,133.59,133.53,7.9263]
[1740744340224,18.64964886,133.58,133.53,7.9263]
[1740744340509,101.44964886,133.58,133.53,1.5563]
[1740744340708,18.64964886,133.56,133.53,1.5563]
[1740744341178,101.44964886,133.56,133.53,1.5563]
[1740744341784,101.44964886,133.56,133.5,6.37]
[1740744341997,101.44964886,133.56,133.5,318.37]
[1740744342728,18.64964886,133.54,133.49,0.03]
[1740744342913,0.14216157,133.53,133.49,0.03]
[1740744343199,18.64964886,133.52,133.49,0.03]
[1740744343894,18.64964886,133.5,133.49,0.03]
[1740744344096,18.79181043,133.5,133.49,0.03]
[1740744346090,18.64964886,133.5,133.49,0.03]
[1740744348396,7.8252882,133.55,133.49,0.03]
[1740744348698,18.64964886,133.54,133.49,0.03]
[1740744348890,0.14216157,133.53,133.49,0.03]
[1740744349111,18.79181043,133.51,133.49,0.03]
[1740744349311,101.59181043,133.51,133.49,0.03]
[1740744350591,101.44964886,133.51,133.49,0.03]
[1740744357413,0.14216157,133.5,133.49,0.03]
[1740744358001,101.59181043,133.5,133.49,0.03]
[1740744361307,18.79181043,133.5,133.49,0.03]
[1740744362020,18.64964886,133.5,133.49,0.03]
[1740744364319,6.3067007,133.53,133.49,0.03]
[1740744364500,18.64964886,133.54,133.49,0.03]
[1740744364700,0.14216157,133.53,133.49,0.03]
[1740744365001,0.14216157,133.51,133.49,0.03]
[1740744365201,18.64964886,133.5,133.49,0.03]
[1740744367103,8.85331226,133.53,133.49,0.03]
[1740744367302,82.8,133.55,133.49,0.03]
[1740744367535,18.64964886,133.54,133.49,0.03]
[1740744367822,2.32910314,133.56,133.5,7.8737]
[1740744368218,18.64964886,133.55,133.5,7.8737]
[1740744368519,18.71264886,133.56,133.5,9.8737]
[1740744368718,18.71264886,133.56,133.5,7.8737]
[1740744369107,18.71264886,133.56,133.5,319.8737]
[1740744369720,18.71264886,133.56,133.51,2.0]
[1740744370431,18.71264886,133.56,133.5,329.3642]
[1740744370625,18.71264886,133.56,133.5,319.8737]
[1740744371014,18.71264886,133.56,133.5,321.8737]
[1740744371730,18.71264886,133.56,133.5,319.8737]
[1740744372227,18.71264886,133.56,133.5,321.8737]
[1740744373107,18.71264886,133.56,133.5,405.4737]
[1740744373318,18.71264886,133.56,133.51,2.0]
[1740744373526,18.71264886,133.56,133.5,410.9642]
[1740744373527,18.71264886,133.56,133.5,401.4737]
[1740744373910,18.71264886,133.56,133.5,89.4737]
[1740744374115,26.56237702,133.56,133.5,89.4737]
[1740744374319,18.64964886,133.54,133.5,7.8737]
[1740744374930,38.64964886,133.51,133.49,0.03]
[1740744375146,18.64964886,133.51,133.49,0.03]
[1740744375507,89.83331597,133.54,133.49,0.03]
[1740744375812,18.64964886,133.53,133.49,0.03]
[1740744376633,38.64964886,133.5,133.49,0.03]
[1740744377140,38.64964886,133.5,133.46,1.6373]
[1740744377141,101.44964886,133.49,133.46,1.6373]
[1740744377316,101.44964886,133.49,133.43,7.8958]
[1740744379317,7.03331597,133.5,133.44,0.14216157]
[1740744379645,18.64964886,133.53,133.46,22.0]
[1740744379852,18.64964886,133.53,133.46,103.6]
[1740744380056,18.64964886,133.53,133.46,101.6]
[1740744380254,18.64964886,133.53,133.46,413.6]
[1740744380554,18.64964886,133.53,133.46,417.6]
[1740744380756,18.64964886,133.53,133.46,105.6]
[1740744380956,18.64964886,133.53,133.46,113.0928]
[1740744381323,7.03331597,133.54,133.47,2.14216157]
[1740744381530,7.03331597,133.54,133.47,219.6364]
[1740744381731,18.64964886,133.53,133.47,219.6364]
[1740744382931,7.03331597,133.54,133.47,223.6364]
[1740744383135,0.063,133.56,133.5,4.14216157]
[1740744383324,0.063,133.56,133.51,1.6652]
[1740744383624,0.063,133.56,133.51,313.6652]
[1740744384026,7.84972816,133.55,133.51,313.6652]
[1740744384540,0.063,133.56,133.51,315.6652]
[1740744384839,18.71264886,133.56,133.51,313.6652]
[1740744385031,18.64964886,133.54,133.51,1.6652]
[1740744385227,7.84972816,133.55,133.51,1.6652]
[1740744385542,0.063,133.56,133.51,3.6652]
[1740744385728,0.063,133.56,133.51,1.6652]
[1740744385922,18.71264886,133.56,133.51,1.6652]